Cogmind - Beta 17 @@@ ROGUE MODE // 2026.07.04 @ 19:09:13 Player: Humbble Result: Destroyed by Autobeam Turret with Autobeam Performance ------------- Evolutions (0) 0 Regions Visited (3) 600 Robots Destroyed (17) 85 Value Destroyed (356) 356 Prototype IDs (0) 0 Alien Tech Used (0) 0 Bonus (74) 74 TOTAL SCORE: 1115 Bonus ------- Follower Combat Kills 74 Cogmind --------- Core Integrity 0/250 Matter 191/300 Energy 100/100 System Corruption 0% Temperature Cool (18) Movement Treading (160) Location -10/Subcaves Parts ------- > --- POWER (1) -------- (None) > --- PROPULSION (2) --- Spiked Treads > --- UTILITY (2) ------ Medium Storage Unit Signal Interpreter > --- WEAPON (2) ------- Battle Rifle Light Cannon > --- INVENTORY (10) --- Ion Engine Ion Engine Ion Engine Improved Heat Sink Light Assault Rifle Battle Rifle Subdweller Machine Gun Peak State ------------ > --- POWER ------------ Light Nuclear Core > --- PROPULSION ------- Subdweller Monowheel Subdweller Monowheel > --- UTILITY ---------- Medium Storage Unit Seismic Detector > --- WEAPON ----------- Battle Rifle Subdweller Machine Gun > --- INVENTORY -------- Ion Engine Ion Engine Ion Engine Spiked Treads Improved Heat Sink Signal Interpreter Light Assault Rifle Battle Rifle Light Cannon Flamer [Rating: 14] Favorites ----------- Power Ion Engine Engine Ion Engine Power Core Light Nuclear Core Propulsion Light Treads Treads Light Treads Leg Aluminum Leg Wheel Subdweller Monowheel Utility Seismic Detector Device Seismic Detector Storage Medium Storage Unit Processor Signal Interpreter Weapon Light Assault Rifle Ballistic Gun Light Assault Rifle Ballistic Cannon Light Cannon Special Weapon Flamer Build | -11 -10 -10 -10 ------- Run | Yrd Mat Min Sub Slots Evolved . | . . . . Power . | . . . . Propulsion . | . . . . Utility . | . . . . Weapon . | . . . . Parts Attached 23 | 7 4 . 12 Power 5 | 1 2 . 2 Engine 4 | 1 2 . 1 Core 1 | . . . 1 Reactor . | . . . . Propulsion 7 | 2 . . 5 Treads 3 | 2 . . 1 Leg 2 | . . . 2 Wheel 2 | . . . 2 Hover . | . . . . Flight . | . . . . Utility 4 | 2 1 . 1 Device 1 | 1 . . . Storage 2 | 1 1 . . Processor 1 | . . . 1 Hackware . | . . . . Protection . | . . . . Artifact . | . . . . Weapon 7 | 2 1 . 4 Energy Gun . | . . . . Energy Cannon . | . . . . Ballistic Gun 5 | 2 1 . 2 Ballistic Cannon 1 | . . . 1 Launcher . | . . . . Special Weapon 1 | . . . 1 Impact Weapon . | . . . . Slashing Weapon . | . . . . Piercing Weapon . | . . . . Special Melee Weapon . | . . . . Unidentified Prototypes . | . . . . Parts Lost 6 | . . . 6 Power 2 | . . . 2 Propulsion 3 | . . . 3 Utility 1 | . . . 1 Weapon . | . . . . Highest Loss Streak 3 | . . . 3 To Critical Strikes 1 | . . . 1 Average Backups 9 | 3 9 10 9 Power 3 | . 3 4 3 Propulsion . | 1 1 . 1 Utility 1 | . 2 2 2 Weapon 2 | . 2 4 3 Tool/Special . | . . . . Unused Backups 14 | . 3 2 9 Power 4 | . . 1 3 Propulsion 3 | . 2 . 1 Utility 4 | . 1 1 2 Weapon 3 | . . . 3 Tool/Special . | . . . . Average Slot Usage (%) 98 | . 100 100 97 Engine 9 | . 14 14 6 Core 4 | . . . 7 Treads 15 | . 28 28 6 Leg 7 | . . . 12 Wheel 4 | . . . 7 Device 13 | . 14 14 13 Storage 14 | . 14 14 14 Ballistic Gun 26 | . 28 28 25 Special Weapon 1 | . . . 2 Peak Build Rating 14 | 7 8 8 14 Average Rating 9 | 5 7 8 10 On Entrance 5 | . 7 8 8 Avg Prop Armor Cover (%) 9 | . . . 9 Naked Turns . | . . . . Heaviest Build 22 | 12 19 18 22 Greatest Support 40 | 40 40 40 40 Greatest Overweight (x) 6 | . . . 6 Average Overweight (x) . | . . . . Largest Inventory Capacity 10 | 8 10 10 10 Average Capacity 9 | 7 9 10 10 Most Carried 10 | 5 10 10 10 Average Carried 9 | 3 9 10 9 Final Capacity 10 | 8 10 10 10 Final Carried 10 | 5 10 10 7 Class Distribution -------------------- 61% | Mutant 38% | Scavenger-Mutant Dominant Class ---------------- Mutant | -10/Materials Mutant | -10/Mines Scavenger-Mutant | -10/Subcaves Resources | -11 -10 -10 -10 ----------- Run | Yrd Mat Min Sub Matter Collected 594 | 205 167 36 186 Remotely . | . . . . Salvage Created 455 | 46 186 12 211 Parts 48 | 7 18 3 20 Haulers Intercepted . | . . . . Recyclers Shooed . | . . . . Parts Field Recycled . | . . . . Retrieved Matter . | . . . . Parts Self-Destructed 8 | . . . 8 Prevented . | . . . . Parts Restored . | . . . . Kills | -11 -10 -10 -10 ------- Run | Yrd Mat Min Sub Combat Hostiles Destroyed 15 | . 8 1 6 Guns 14 | . 8 1 5 Cannons 1 | . . . 1 Classes Destroyed 5 | 2 2 . 1 Worker 1 | 1 . . . Tunneler 1 | 1 . . . Swarmer 8 | . 6 1 1 Grunt 2 | . 2 . . Subdweller 5 | . . . 5 Best Kill Streak 3 | 1 3 1 2 Combat Bots Only 3 | . 3 1 2 Max Kills in Single Turn 1 | 1 1 1 1 Gunslinging . | . . . . Exploded . | . . . . Melee . | . . . . Uniques/NPCs Destroyed . | . . . . Combat | -11 -10 -10 -10 -------- Run | Yrd Mat Min Sub Hostile Shots Fired 199 | . 29 9 161 Missed 66 | . 6 4 56 Hits 133 | . 23 5 105 Projectile 133 | . 23 5 105 Critical Strikes 1 | . . . 1 Damage Taken 1366 | . 196 52 1118 Core 251 | . 20 . 231 Absorbed by Shields . | . . . . Core Remaining (%) 100 | 100 . . . Volleys Fired 81 | 6 17 6 52 Largest 2 | 2 2 2 2 Hottest 100 | 40 40 40 100 Shots Fired 157 | 12 34 12 99 Gun 144 | 12 34 12 86 Cannon 8 | . . . 8 Launcher . | . . . . Special 5 | . . . 5 Kinetic 152 | 12 34 12 94 Thermal 5 | . . . 5 Explosive . | . . . . Electromagnetic . | . . . . Robot Hit Streak 13 | 5 7 6 13 Robot Miss Streak 4 | 2 4 2 2 Penetration Max . | . . . . Secondary Targets 2 | . 1 . 1 Max Gunslinging Chain 1 | . 1 . 1 Shots Hit Robots 85 | 9 18 6 52 Core Hits 36 | 3 13 2 18 Critical Kills 1 | 1 . . . Critical Parts Destroyed . | . . . . Critical Strikes 2 | 1 . . 1 Destroy 2 | 1 . . 1 Melee Attacks . | . . . . Impact . | . . . . Slashing . | . . . . Piercing . | . . . . Sneak Attacks . | . . . . Combat Hostiles . | . . . . Follow-up Attacks . | . . . . Damage Inflicted 882 | 94 173 44 571 Guns 777 | 94 173 44 466 Cannons 105 | . . . 105 Explosions . | . . . . Melee . | . . . . Ramming . | . . . . Kinetic 882 | 94 173 44 571 Thermal . | . . . . Explosive . | . . . . Electromagnetic . | . . . . Impact . | . . . . Slashing . | . . . . Piercing . | . . . . Highest Corruption . | . . . . Average Corruption . | . . . . Corruption Purged . | . . . . Corruption Blocked . | . . . . Overload Shots . | . . . . Overflow Damage . | . . . . Projectiles . | . . . . Explosions . | . . . . Melee . | . . . . Knockbacks 4 | . . . 4 Impact . | . . . . Kinetic 4 | . . . 4 Secondary . | . . . . Self-Inflicted Damage . | . . . . Shots . | . . . . Rammed . | . . . . Targets Rammed . | . . . . Kicked . | . . . . Crushed . | . . . . Highest Temperature 6 | . 6 . 6 Average Temperature 5 | . 6 . 5 Received Heat Transfer 381 | . 30 9 342 Siege Activations . | . . . . Martial Activations . | . . . . Shielding Activations . | . . . . Robots Disrupted . | . . . . Combat Hostiles . | . . . . Robots Corrupted . | . . . . Combat Hostiles . | . . . . Parts Fried . | . . . . Impact Corruptions . | . . . . Robots Melted . | . . . . Combat Hostiles . | . . . . Parts Melted . | . . . . Heat Transferred . | . . . . Parts Sabotaged . | . . . . Parts Stolen . | . . . . Parts Stripped . | . . . . Power Chain Reactions . | . . . . Alert | -11 -10 -10 -10 ------- Run | Yrd Mat Min Sub Maximum Alert Level . | . . . . Low Security (%) 100 | 100 100 100 . Level 1 . | . . . . Level 2 . | . . . . Level 3 . | . . . . Level 4 . | . . . . Level 5 . | . . . . High Security . | . . . . Max Security . | . . . . Peak Influence 155 | 5 155 68 . Initial 36 | . 3 36 . Average 42 | . 62 30 . Influence Increases 479 | 10 225 134 110 Destroy 0b10 Robot/C 280 | . 160 100 20 Destroy 0b10 Robot/NC 10 | 10 . . . Destroy Leader 40 | . 20 20 . Allied During Kill 14 | . . 14 . Lose Combat Pursuer 135 | . 45 . 90 Influence Decreases 411 | 5 135 211 60 Entered New Map 71 | . 2 59 10 Time Decay 294 | 5 133 136 20 Lost Part 30 | . . . 30 Lost Ally 16 | . . 16 . Squads Dispatched 1 | . 1 . . Investigation . | . . . . Extermination . | . . . . Reinforcement 1 | . 1 . . Assault . | . . . . Garrison . | . . . . Intercept . | . . . . Searches Triggered . | . . . . Construction Impeded . | . . . . Haulers Reinforced . | . . . . Active Scanning Responses . | . . . . Cargo Convoy Interrupts . | . . . . Stealth | -11 -10 -10 -10 --------- Run | Yrd Mat Min Sub Distress Signals 2 | . 2 . . Communications Jammed . | . . . . Distress Signals . | . . . . Times Spotted 25 | . 11 5 9 Peak Tracking Total 6 | . 4 3 6 Tactical Retreats 4 | . 1 . 3 Traps | -11 -10 -10 -10 ------- Run | Yrd Mat Min Sub Traps Triggered . | . . . . Indirectly . | . . . . Trap Hack Attempts . | . . . . Triggered . | . . . . Disarmed . | . . . . Reprogrammed . | . . . . Reused . | . . . . Traps Extracted . | . . . . Installed . | . . . . Triggered . | . . . . Machines | -11 -10 -10 -10 ---------- Run | Yrd Mat Min Sub Machines Disabled . | . . . . Max in Single Turn . | . . . . Machines Repaired . | . . . . Machines Dismantled . | . . . . Machines Sabotaged . | . . . . Overloaded Fab Kills . | . . . . Hacking | -11 -10 -10 -10 --------- Run | Yrd Mat Min Sub Machines Accessed 2 | . 2 . . Terminals 2 | . 2 . . Fabricators . | . . . . Repair Stations . | . . . . Recycling Units . | . . . . Scanalyzers . | . . . . Garrison Access . | . . . . Total Hacks 2 | . 2 . . Successful 2 | . 2 . . Failed . | . . . . Catastrophic . | . . . . Database Lockouts . | . . . . Manual . | . . . . Terminals 2 | . 2 . . Fabricators . | . . . . Repair Stations . | . . . . Recycling Units . | . . . . Scanalyzers . | . . . . Garrison Access . | . . . . Terminal Hacks 2 | . 2 . . Terminal Index 1 | . 1 . . Zone Layout 1 | . 1 . . Fabricator Hacks . | . . . . Repair Station Hacks . | . . . . Recycling Unit Hacks . | . . . . Scanalyzer . | . . . . Garrison Access Hacks . | . . . . Unauthorized Hacks . | . . . . Terminals . | . . . . Fabricators . | . . . . Repair Stations . | . . . . Recycling Units . | . . . . Scanalyzers . | . . . . Garrison Access . | . . . . Data Cores Recovered . | . . . . Used . | . . . . Hacking Detections . | . . . . Full Trace Events . | . . . . Feedback Events . | . . . . Feedback Blocked . | . . . . Robot Schematics Acquired . | . . . . Robots Built . | . . . . Authchips . | . . . . Time . | . . . . Total Robot Build Rating . | . . . . Part Schematics Acquired . | . . . . Parts Built . | . . . . Authchips . | . . . . Time . | . . . . Total Part Build Rating . | . . . . Part Studies Acquired . | . . . . Parts Repaired . | . . . . Time . | . . . . Parts Recycled . | . . . . Recycled Matter . | . . . . Retrieved Matter . | . . . . Retrieved Components . | . . . . Parts Scanalyzed . | . . . . Part Schematics Acquired . | . . . . Parts Damaged . | . . . . Bothacking | -11 -10 -10 -10 ------------ Run | Yrd Mat Min Sub Used RIF Installer . | . . . . Robots Hacked . | . . . . Non-combat . | . . . . Combat . | . . . . Robot Hacks Applied . | . . . . Relay Couplers Released . | . . . . Fabnet Peak Effective % . | . . . . Robots Rewired . | . . . . Allies Hacked . | . . . . Hacks Repelled . | . . . . Allies | -11 -10 -10 -10 -------- Run | Yrd Mat Min Sub Total Allies 3 | . . 3 . Largest Group 3 | . . 3 2 Highest-Rated Group 40 | . . 40 32 Highest-Rated Ally 16 | . . 16 16 Total Orders . | . . . . Ally Attacks 23 | . . 18 5 Total Damage 270 | . . 206 64 Kills 4 | . . 4 . Allies Corrupted . | . . . . Allies Melted . | . . . . Intel | -11 -10 -10 -10 ------- Run | Yrd Mat Min Sub Active Infowar (turns) 1544 | 33 391 284 836 Seismic 1544 | 33 391 284 836 Robot Analysis Total . | . . . . Derelict Logs Recovered . | . . . . Drone Launches . | . . . . Drone Recoveries . | . . . . Exploration | -11 -10 -10 -10 ------------- Run | Yrd Mat Min Sub Turns Passed 1658 | 109 391 284 874 Spaces Moved 931 | 54 161 160 556 Core 9 | 8 . . 1 Treads 450 | 46 161 160 83 Legs 245 | . . . 245 Wheels 227 | . . . 227 Hover . | . . . . Flight . | . . . . Fastest Speed 50 | 50 160 160 110 Average Speed 137 | 143 160 160 124 Slowest Speed 350 | 160 160 160 350 Overloaded Moves . | . . . . Propulsion Burnouts . | . . . . Robots Hopped . | . . . . Potential Cave-ins . | . . . . Cave-ins Triggered . | . . . . Exploration Rate (%) 28 | 4 31 48 32 Regions Visited 3 Branch Regions 2 Pre-discovered Areas . | . . . . Known Exits Taken . | . . . . Unknown Exits Taken 3 | 1 1 1 . Scrap Searched 5 | . . 1 4 Spaces Dug . | . . . . Terrain Destroyed . | . . . . Melee . | . . . . Projectile . | . . . . AOE . | . . . . Terrain Rammed . | . . . . Walls Destroyed . | . . . . Machines Disabled . | . . . . Actions | -11 -10 -10 -10 --------- Run | Yrd Mat Min Sub Total 1172 | 71 266 182 653 Wait 91 | . 74 13 4 Move 928 | 53 160 159 556 Hop . | . . . . Pick Up 23 | 5 6 2 10 Fast Attach 8 | 7 . . 1 Attach 7 | . . . 7 Detach . | . . . . Swap 14 | . 4 . 10 Drop 20 | . 5 2 13 Fire 81 | 6 17 6 52 Melee . | . . . . Ram . | . . . . Kick . | . . . . Crush . | . . . . Escape Stasis . | . . . . Rewire . | . . . . Trap . | . . . . Miscellaneous . | . . . . Route ------- -11/Scrapyard -10/Materials -10/Mines -10/Subcaves History --------- Turn | Location | Event 8 | -11/Scrapyard | Discovered new exit (range 15) 110 | -11/Scrapyard | Entered Materials 317 | -10/Materials | Discovered new exit (range 14) 325 | -10/Materials | Build established: Mutant 501 | -10/Materials | Entered Mines 503 | -10/Mines | Assisted by bots powering up and referring to "LRC-V3" 774 | -10/Mines | Discovered new exit (range 4) 785 | -10/Mines | Entered Subcaves 785 | -10/Subcaves | Accompanied by 2 allies 786 | -10/Subcaves | Approached by a straggling Scientist 872 | -10/Subcaves | Shifting Twisted Machinery released Flamer 1189 | -10/Subcaves | Shifting Twisted Machinery released Sub. Machine Gun 1253 | -10/Subcaves | Build established: Scavenger-Mutant 1412 | -10/Subcaves | Core integrity fell below 50% 1485 | -10/Subcaves | Shifting Twisted Machinery released Sub. Monowheel 1490 | -10/Subcaves | Shifting Twisted Machinery released Riot Gun 1644 | -10/Subcaves | Core integrity fell below 20% 1659 | -10/Subcaves | Destroyed by Autobeam Turret with Autobeam Last Messages --------------- 01570_ Sub. Monowheel shoots sparks and powers down. 01578_ Dropped Broken Sub. Monowheel. 5I-KVS(c): "I think it's somewhere southwest of here" 01621_ Seismic Detector destroyed. 01623_ S-10 Pest destroyed. 01624_ Sub. Monowheel destroyed. 01625_ Dropped Flamer. 01636_ S-10 Pest destroyed. 01641_ S-10 Pest knocked back. 01642_ Tech Extrapolator violently self-destructs. 01645_ Lgt. Assault Rifle fries itself beyond repair. 01646_ Flight Unit fries itself beyond repair. 01647_ S-10 Pest knocked back. 01647_ Sub. Power Source destroyed. 01650_ S-10 Pest knocked back. 01655_ Destroyed Lgt. Assault Rifle. Map ----- +----------------------------------------------------+ | ?????????????????????????????????????????????????? | | ?????????????????????????????????????????????????? | | ?????????????????????????????????????????????????? | | ?????????????????????????????????????????????????? | | ?????????????????????????????????????????????????? | | ?????????????????????????????????????????????????? | | ?????????????????????????????????????????????????? | | ?????????????????????????????????????????????????? | | ?????????????????????????????????????????????????? | | ?????????????????????????????????????????????????? | | ??????????????????????? ???????????????????????? | | ?????????????????????? ???????????????????????? | | ?????????????????????? ???????????????????????? | | ??????????????????????# ???????????????????????? | | ?????????????????????## ???????????????????????? | | ?????????????????????# ???????????????????????? | | ?????????????????????# #??????????????????????? | | ?????????????????????? ??????????????????????? | | ?????????????????????? % ??????????????????????? | | ??????????????????????# %%#??????????????????????? | | ??????????????????????# ??????????????????????? | | ??????????????????????? %%#??????????????????????? | | ??????????????????????## %##?????????????????????? | | ?????????????###??????# % #?????????????????????? | | ????????????## ##?????#%% #?????????????????????? | | ???????????## ##????# @###????????????????????? | | ???????????# ##???# #????????????????????? | | ???????????# #???## ##???????????????????? | | ???????????# ###?## #???????????????????? | | ??????????## ### #???????????????????? | | ?????????## ##???????????????????? | | ????????## #????????????????????? | | ???????## ### ## #????????????????????? | | #" "???# ###?#############????????????????????? | | """"???# #????????????????????????????????????? | | """#???## ##??##???????????????????????????????? | | """????# ### #???????????????????????????????? | | #""####### #???????????????????????????????? | | #""""""### #???????????????????????????????? | | """ ## = ##???????????????????????????????? | | "" #????????????????????????????????? | | "" #????????????????????????????????? | | ### #????????????????????????????????? | | #?## ##????????????????????????????????? | | ##?# ##?????????????????????????????????? | | #?# ###??????????????????????????????????? | | ### ### ##????????????????????????????????????? | | #?# ## ##?????????????????????????????????????? | | #?# #??????????????????????????????????????? | | ### ##??????????????????????????????????????? | +----------------------------------------------------+ Best States ------------- Heat Dissipation 25 Energy Generation 15 Energy Capacity 250 Matter Stores 300 Matter Capacity 300 Sight Range 16 Terrain Scan Density 10 Evasion (%) 55 Recoil Reduction 2 Item Schematics ----------------- None Robot Schematics ------------------ None Fabricated ------------ Nothing Repaired ---------- Nothing Studied --------- None Alien Tech Used ----------------- None Achievements -------------- None Challenges ------------ None Game ------ Seed HugePhysicsDeflector Manual? 0 Play Time 00:18:53 Cumulative 64.1 hours Start 2026.07.04 @ 18:44:33 End 2026.07.04 @ 19:09:13 Sessions 1 Manual Loads 0 Difficulty Rogue Special Mode None Game No. 65 Rogue 60 Adventurer 0 Explorer 5 Win Type - Total 0 Types 0/0/0/0/0/0/0/0/0/0 Lore% 27 Gallery% 28 Achievement% 22 Wizard Run 0 Options --------- Layout 2 ASCII 0 Keyboard 0 Movement Mouse Keybinds 0 Fullscreen 2 Font 24/Smallcaps Map View 50x44 Zoom Use 0% Tactical HUD 1 Map Filters NONE Filters NONE Steam 1 RUN: 0688b157-a42b-47f1-b69e-4986b998ff80